bitfinex-derivatives/quotes_BTCF0:USTF0_20241218
["timestamp","ask_amount","ask_price","bid_price","bid_amount"]
[1734532149862,0.01,104640.0,104630.0,0.82067817]
[1734532150664,0.01,104640.0,104630.0,0.733]
[1734532150861,0.01,104640.0,104630.0,0.63827817]
[1734532151363,0.01,104640.0,104630.0,0.44847817]
[1734532152764,0.01111591,104640.0,104630.0,0.44847817]
[1734532153670,0.01111591,104640.0,104630.0,0.61946887]
[1734532154966,0.01130842,104640.0,104630.0,0.44847817]
[1734532157673,0.01130842,104640.0,104630.0,0.61946887]
[1734532158063,0.01090842,104640.0,104630.0,0.61946887]
[1734532158466,0.01050842,104640.0,104630.0,0.61946887]
[1734532159064,0.01010842,104640.0,104630.0,0.61946887]
[1734532159868,0.01010842,104640.0,104630.0,0.84773816]
[1734532160068,0.08679818,104660.0,104650.0,0.08767817]
[1734532160269,0.08639818,104660.0,104650.0,0.80927817]
[1734532160577,0.08599818,104660.0,104650.0,0.80927817]
[1734532160971,0.08559818,104660.0,104650.0,0.80927817]
[1734532161165,0.08536447,104660.0,104650.0,0.80927817]
[1734532161367,0.08896447,104660.0,104650.0,0.80927817]
[1734532162060,0.08656447,104660.0,104650.0,0.80927817]
[1734532162264,0.09316447,104660.0,104650.0,0.81027817]
[1734532162668,0.09300447,104660.0,104650.0,0.81027817]
[1734532162866,0.08900447,104660.0,104650.0,0.80927817]
[1734532163272,0.11371031,104670.0,104650.0,1.10927817]
[1734532163474,0.11371031,104680.0,104660.0,0.99967817]
[1734532163659,0.11371031,104680.0,104670.0,0.3608]
[1734532163865,0.11371031,104680.0,104670.0,0.44857298]
[1734532164975,0.46496477,104690.0,104670.0,0.44857298]
[1734532165165,0.46496477,104690.0,104680.0,0.3608]
[1734532166374,0.32278031,104690.0,104680.0,0.3608]
[1734532166572,0.32778031,104690.0,104680.0,0.3618]
[1734532167173,0.33078031,104690.0,104680.0,0.3618]
[1734532170069,0.33078031,104690.0,104680.0,0.37147077]
[1734532170375,0.21707,104690.0,104680.0,0.37147077]
[1734532171573,0.33078031,104690.0,104680.0,0.37147077]
[1734532171873,0.41845848,104690.0,104680.0,0.37147077]
[1734532172074,0.71845848,104690.0,104680.0,0.001]
[1734532172374,1.43221848,104690.0,104670.0,9.481e-05]
[1734532172575,0.27087817,104680.0,104670.0,9.481e-05]
[1734532172778,1.77087817,104680.0,104670.0,9.481e-05]
[1734532173070,0.57087817,104680.0,104670.0,9.481e-05]
[1734532173266,0.57097298,104680.0,104660.0,0.3608]
[1734532173670,0.57097298,104680.0,104670.0,0.001]
[1734532174376,0.82886775,104680.0,104670.0,0.001]
[1734532175373,0.90405744,104680.0,104660.0,0.3608]
[1734532175586,0.08767817,104670.0,104650.0,0.3608]
[1734532176377,0.3436902,104670.0,104650.0,0.3608]
[1734532176680,0.25601203,104670.0,104650.0,0.3608]
[1734532176873,0.25601203,104670.0,104650.0,0.3618]
[1734532177273,0.25601203,104670.0,104650.0,0.37143799]
[1734532177879,0.11382757,104660.0,104650.0,0.37143799]
[1734532178272,0.11382757,104660.0,104650.0,0.39032327]
[1734532179082,0.11382757,104660.0,104650.0,0.39332327]
[1734532179684,0.11382757,104660.0,104650.0,0.39532327]
[1734532179975,0.11382757,104660.0,104650.0,0.56631397]
[1734532181481,0.11382757,104660.0,104650.0,0.39532327]
[1734532182480,0.20150574,104660.0,104650.0,0.39532327]
[1734532182986,0.11382757,104660.0,104650.0,0.39532327]
[1734532184082,0.11382757,104660.0,104650.0,0.37643799]
[1734532185680,0.11382757,104660.0,104650.0,0.46411616]
[1734532186280,0.11382757,104670.0,104650.0,0.60470728]
[1734532186579,0.11382757,104670.0,104660.0,0.3608]
[1734532187483,0.11382757,104670.0,104660.0,0.53221444]
[1734532188483,0.20150574,104670.0,104660.0,0.53221444]
[1734532188680,1.27128501,104680.0,104660.0,0.53221444]
[1734532188879,1.27128501,104680.0,104660.0,0.53321444]
[1734532189286,0.91048501,104680.0,104660.0,0.53321444]
[1734532189582,2.77128501,104680.0,104660.0,0.53321444]
[1734532189784,0.11382757,104670.0,104660.0,0.53221444]
[1734532190885,0.20150574,104670.0,104660.0,0.53221444]
[1734532191386,0.11382757,104670.0,104660.0,0.53221444]
[1734532191583,0.11382757,104670.0,104660.0,0.91931444]
[1734532192085,0.11382757,104670.0,104660.0,1.20669261]
[1734532192288,0.11382757,104670.0,104660.0,1.20769261]
[1734532192588,0.11382757,104670.0,104660.0,1.21769261]
[1734532193393,0.11392238,104680.0,104660.0,1.71318711]
[1734532193578,0.11392238,104680.0,104670.0,0.3608]
[1734532193783,0.11392238,104680.0,104670.0,0.44847817]
[1734532194794,9.481e-05,104680.0,104670.0,0.67674746]
[1734532195792,0.00309481,104680.0,104670.0,0.67674746]
[1734532196097,0.00509481,104680.0,104670.0,0.67674746]
[1734532199088,0.00509481,104680.0,104670.0,0.76442563]
[1734532199794,0.00509481,104680.0,104670.0,0.67674746]
[1734532199994,0.00509481,104680.0,104670.0,1.11193284]
[1734532200387,0.01,104690.0,104670.0,1.49961101]
[1734532200588,0.35601203,104700.0,104680.0,0.82317817]
[1734532200900,0.4436902,104700.0,104680.0,0.7355]
[1734532201095,0.08767817,104690.0,104680.0,0.3747]
[1734532201296,0.44847817,104690.0,104670.0,0.66345467]
[1734532201500,0.44847817,104680.0,104670.0,0.49312414]
[1734532201685,0.53615634,104680.0,104670.0,0.27481406]
[1734532201886,0.6608,104680.0,104660.0,0.01]
[1734532202198,0.3608,104670.0,104660.0,0.01]
[1734532202394,0.08767817,104670.0,104660.0,0.01]
[1734532202600,0.53615634,104670.0,104660.0,0.01]
[1734532202784,1.01885634,104670.0,104660.0,0.01]
[1734532203096,1.38617635,104670.0,104640.0,0.17286659]
[1734532203398,1.38617635,104670.0,104640.0,0.17143355]
[1734532203399,0.80923817,104650.0,104640.0,0.17143355]
[1734532203788,1.19691634,104650.0,104640.0,7.579e-05]
[1734532203993,1.10923817,104650.0,104620.0,0.61137701]
[1734532204193,0.44847817,104630.0,104620.0,0.42677701]
[1734532204396,0.44847817,104630.0,104620.0,0.22847701]
[1734532204898,0.56246732,104630.0,104610.0,0.01143386]
[1734532205199,0.08767817,104620.0,104610.0,0.01143386]
[1734532205493,0.44847817,104620.0,104610.0,0.01143386]
[1734532206390,0.44847817,104620.0,104610.0,0.02043386]
[1734532206587,0.70633903,104630.0,104610.0,0.02043386]
[1734532206898,0.70585903,104630.0,104610.0,0.02043386]
[1734532207090,0.70585903,104630.0,104610.0,0.02543386]
[1734532207396,0.08767817,104620.0,104610.0,0.01843386]
[1734532207590,0.47478915,104630.0,104610.0,0.01843386]
[1734532207591,0.56246732,104630.0,104610.0,0.01843386]
[1734532208198,0.56246732,104630.0,104610.0,0.37923386]
[1734532208595,0.44855396,104630.0,104610.0,0.37923386]
[1734532208792,0.44855396,104630.0,104610.0,0.37723386]
[1734532208987,7.579e-05,104630.0,104620.0,0.3608]
[1734532209189,7.579e-05,104630.0,104620.0,0.44847817]
[1734532210301,7.579e-05,104630.0,104620.0,0.44947817]
[1734532211795,0.11391336,104660.0,104620.0,0.83715634]
[1734532211993,0.14239171,104670.0,104650.0,0.80927817]
[1734532211994,0.13450741,104670.0,104650.0,0.80927817]
[1734532212198,0.15987005,104680.0,104660.0,0.72655634]
[1734532212394,0.15987005,104680.0,104670.0,0.44847817]
[1734532212796,0.15987005,104680.0,104670.0,0.3608]
[1734532213506,0.08767817,104680.0,104670.0,0.3608]
[1734532213802,0.08967817,104680.0,104670.0,0.3608]
[1734532214194,0.45047817,104680.0,104660.0,0.00012116]
[1734532214390,0.002,104680.0,104660.0,0.44859933]
[1734532214595,0.002,104680.0,104670.0,0.3608]
[1734532214795,0.003,104680.0,104670.0,0.44847817]
[1734532214996,0.003,104680.0,104670.0,0.53615634]
[1734532215196,0.003,104680.0,104670.0,0.44847817]
[1734532215398,0.003,104680.0,104670.0,0.63177817]
[1734532215806,0.003,104680.0,104670.0,0.3608]
[1734532216005,0.001,104680.0,104660.0,0.63229933]
[1734532216201,0.3638,104680.0,104660.0,0.54462116]
[1734532216507,0.003,104680.0,104660.0,0.54462116]
[1734532216706,0.003,104680.0,104660.0,0.63229933]
[1734532217198,0.001,104680.0,104670.0,0.08767817]
[1734532217400,0.003,104680.0,104660.0,0.63229933]
[1734532217696,0.003,104680.0,104670.0,0.08767817]
[1734532217903,0.003,104680.0,104660.0,0.63229933]
[1734532218809,0.002,104680.0,104660.0,0.63229933]
[1734532219008,0.003,104680.0,104660.0,0.64165406]
[1734532219310,0.003,104680.0,104670.0,0.53615634]
[1734532219607,0.00038,104690.0,104670.0,0.53615634]
[1734532219805,0.00038,104690.0,104680.0,0.62877817]
[1734532221410,0.00338,104690.0,104680.0,0.62877817]
[1734532222107,0.00338,104690.0,104680.0,0.67244769]
[1734532222306,0.00638,104690.0,104680.0,0.67244769]
[1734532222707,0.00638,104690.0,104680.0,0.80379538]
[1734532223108,0.11,104700.0,104680.0,0.80379538]
[1734532223314,0.11,104700.0,104690.0,0.67654769]
[1734532224009,0.11,104700.0,104690.0,0.87014769]
[1734532224512,0.114,104700.0,104690.0,0.87014769]
[1734532225017,0.55663328,104730.0,104690.0,1.17014769]
[1734532225209,0.55663328,104730.0,104710.0,0.49214769]
[1734532225411,0.3608,104720.0,104700.0,0.3608]
[1734532225710,0.55663328,104730.0,104700.0,0.49214769]
[1734532226309,0.55663328,104730.0,104710.0,0.13134769]
[1734532226496,0.55663328,104730.0,104700.0,0.49214769]
[1734532227502,0.003,104720.0,104700.0,0.49214769]
[1734532228120,0.55663328,104730.0,104700.0,0.49214769]
[1734532228320,0.55963328,104730.0,104700.0,0.49314769]
[1734532228708,0.55963328,104730.0,104700.0,0.50285567]
[1734532228908,0.55963328,104730.0,104700.0,0.37150798]
[1734532228909,0.55663328,104730.0,104700.0,0.37150798]
[1734532229110,0.003,104720.0,104700.0,0.37150798]
[1734532230306,0.003,104720.0,104710.0,0.49214769]
[1734532230507,0.56863328,104730.0,104710.0,0.49214769]
[1734532230703,0.56863328,104730.0,104710.0,0.13134769]
[1734532230922,0.56863328,104730.0,104700.0,0.50285567]
[1734532231217,0.002,104720.0,104700.0,0.37150798]
[1734532231417,0.3628,104720.0,104700.0,0.37150798]
[1734532231615,0.002,104720.0,104700.0,0.37150798]
[1734532231816,0.3628,104720.0,104700.0,0.01070798]
[1734532232017,0.3608,104720.0,104700.0,0.01070798]
[1734532232211,0.56863328,104730.0,104700.0,0.37150798]
[1734532232412,0.56863328,104730.0,104700.0,0.01070798]
[1734532232913,0.56863328,104730.0,104700.0,0.37150798]
[1734532233120,0.56863328,104730.0,104710.0,0.3608]
[1734532233321,0.01343328,104730.0,104720.0,0.13134769]
[1734532233617,0.00143328,104730.0,104720.0,0.32054769]
[1734532234213,0.00443328,104730.0,104720.0,0.50484769]
[1734532234415,0.00443328,104730.0,104720.0,0.69344769]
[1734532234619,0.00443328,104730.0,104720.0,0.68134769]
[1734532234822,0.003,104730.0,104720.0,0.68134769]
[1734532235321,0.003,104730.0,104720.0,0.68234769]
[1734532237919,0.003,104730.0,104720.0,0.1902]
[1734532238114,0.003,104730.0,104720.0,0.551]
[1734532238922,0.003,104730.0,104720.0,0.19967322]
[1734532239524,0.003,104730.0,104720.0,0.56047322]
[1734532239818,0.003,104730.0,104720.0,0.19967322]
[1734532240026,0.003,104730.0,104720.0,0.01047322]
[1734532241128,0.003,104730.0,104720.0,0.37127322]
[1734532242525,0.003,104730.0,104720.0,0.01047322]
[1734532243133,0.003,104730.0,104720.0,0.09799206]
[1734532243622,0.003,104730.0,104720.0,0.01047322]
[1734532244329,0.14520765,104730.0,104720.0,0.09799206]
[1734532246227,0.14520765,104730.0,104720.0,0.37127322]
[1734532246423,0.14520765,104730.0,104720.0,0.01047322]
[1734532246929,0.14520765,104730.0,104720.0,0.001]
[1734532246930,0.23272649,104730.0,104720.0,0.001]
[1734532247232,0.78922649,104730.0,104720.0,0.001]
[1734532247631,0.08751884,104710.0,104680.0,0.84582883]
[1734532247821,0.3608,104710.0,104680.0,0.87591303]
[1734532248026,0.44831884,104710.0,104680.0,0.79790772]
[1734532248223,0.44831884,104690.0,104680.0,0.23910772]
[1734532248433,0.80107884,104690.0,104680.0,0.22959419]
[1734532248628,1.48377884,104690.0,104680.0,0.22959419]
[1734532249035,1.48377884,104690.0,104680.0,0.00143256]
[1734532249229,1.18377884,104690.0,104680.0,0.00143256]
[1734532249424,1.48377884,104690.0,104680.0,0.005]
[1734532250035,1.52771855,104690.0,104680.0,0.005]
[1734532250233,1.69748463,104690.0,104680.0,0.005]
[1734532250426,1.82894318,104690.0,104660.0,0.00012116]
[1734532250638,0.49225855,104670.0,104660.0,0.00012116]
[1734532250837,0.85305855,104670.0,104660.0,0.00012116]
[1734532251030,1.15305855,104670.0,104660.0,0.00012116]
[1734532251627,1.3229007,104670.0,104640.0,0.00143328]
[1734532251829,0.3608,104650.0,104640.0,0.00143328]
[1734532252135,0.85305855,104650.0,104640.0,0.00143328]
[1734532252332,1.15305855,104650.0,104640.0,0.00143328]
[1734532252834,1.50589855,104650.0,104640.0,0.00143328]
[1734532253230,1.68901067,104650.0,104620.0,0.53246348]
[1734532253438,0.3608,104630.0,104620.0,0.01870558]
[1734532254227,0.3608,104630.0,104610.0,0.01]
[1734532254430,0.49225855,104620.0,104610.0,0.01]
[1734532255143,0.3608,104620.0,104610.0,0.01]
[1734532255637,0.3618,104620.0,104610.0,0.019]
[1734532255840,0.001,104620.0,104610.0,0.019]
[1734532256042,0.001,104620.0,104610.0,0.51125855]
[1734532256228,0.001,104620.0,104610.0,0.51325855]
[1734532256537,0.001,104620.0,104610.0,0.3818]
[1734532257125,0.50279531,104640.0,104610.0,0.3728]
[1734532257330,0.3608,104640.0,104620.0,0.3608]
[1734532258538,0.3628,104640.0,104620.0,0.3608]
[1734532259140,0.3628,104640.0,104610.0,0.3708]
[1734532259439,0.3628,104640.0,104620.0,0.3608]
[1734532260133,0.3608,104630.0,104610.0,0.01]
[1734532260639,0.3628,104640.0,104610.0,0.3708]
[1734532261147,0.3608,104630.0,104610.0,0.01]
[1734532261742,0.49225855,104620.0,104610.0,0.012]
[1734532261930,0.49232814,104620.0,104610.0,0.012]
[1734532262137,1.17842814,104620.0,104610.0,0.01]
[1734532262534,0.87842814,104620.0,104610.0,0.01]
[1734532263545,0.74696959,104620.0,104610.0,0.012]
[1734532263947,0.74696959,104620.0,104600.0,0.11720402]
[1734532264250,0.3608,104610.0,104600.0,0.11720402]
[1734532264444,0.49225855,104610.0,104600.0,0.09803706]
[1734532264755,1.29115711,104610.0,104570.0,0.01892231]
[1734532264931,0.49225855,104580.0,104550.0,0.01]
[1734532265133,0.3608,104560.0,104550.0,0.01]
[1734532265441,0.49225855,104570.0,104550.0,0.01]
[1734532265652,0.49234276,104560.0,104550.0,0.01]
[1734532266044,0.36088421,104560.0,104550.0,0.019]
[1734532266245,0.49234276,104560.0,104550.0,0.019]
[1734532266647,0.92380131,104560.0,104550.0,0.019]
[1734532266842,0.92380131,104560.0,104530.0,0.00010824]
[1734532267045,0.85305855,104540.0,104530.0,0.00010824]
[1734532267937,0.7216,104540.0,104530.0,0.00010824]
[1734532268544,0.7226,104540.0,104530.0,0.00610824]
[1734532268744,0.7226,104540.0,104530.0,0.01310824]
[1734532269447,0.7226,104540.0,104530.0,0.00610824]
[1734532269653,0.001,104540.0,104530.0,0.36890824]
[1734532269843,8.421e-05,104560.0,104530.0,0.80036679]
[1734532270037,8.421e-05,104560.0,104540.0,0.49225855]
[1734532270350,8.421e-05,104560.0,104540.0,0.3608]
[1734532270550,8.421e-05,104560.0,104550.0,0.3608]
[1734532271051,8.421e-05,104560.0,104550.0,0.49225855]
[1734532271352,0.00208421,104560.0,104550.0,0.49225855]
[1734532271744,0.00308421,104560.0,104550.0,0.3608]
[1734532272451,0.00208421,104560.0,104550.0,0.3608]
[1734532272652,0.00308421,104560.0,104550.0,0.3608]
[1734532273049,0.49534276,104560.0,104530.0,0.38790824]
[1734532273244,0.3608,104550.0,104530.0,0.38790824]
[1734532274348,0.56396586,104550.0,104530.0,0.19850824]
[1734532274548,0.56396586,104550.0,104530.0,0.20050824]
[1734532274945,0.56396586,104540.0,104530.0,0.00210824]
[1734532275341,0.86396586,104540.0,104530.0,0.00210824]
[1734532275547,0.86406415,104540.0,104510.0,0.00143477]
[1734532275858,0.3608,104520.0,104510.0,0.00143477]
[1734532277558,0.56396586,104520.0,104510.0,0.00143477]
[1734532277858,0.56496586,104520.0,104510.0,0.00843477]
[1734532278058,0.3618,104520.0,104510.0,0.01743477]
[1734532278352,0.56596586,104520.0,104510.0,0.01743477]
[1734532278560,0.3628,104520.0,104510.0,0.01743477]
[1734532279259,0.56596586,104520.0,104510.0,0.01743477]
[1734532279644,0.3628,104520.0,104510.0,0.01743477]
[1734532282069,0.56596586,104520.0,104510.0,0.01743477]
[1734532282961,0.56596586,104520.0,104510.0,0.016]
[1734532283458,1.22676586,104520.0,104510.0,0.016]
[1734532283658,1.22685446,104520.0,104480.0,0.60041971]
[1734532283859,0.3608,104500.0,104480.0,0.60041971]
[1734532284264,0.56396586,104490.0,104480.0,0.03861971]
[1734532284768,0.56406502,104490.0,104480.0,0.03861971]
[1734532285063,0.56406502,104490.0,104480.0,0.05461971]
[1734532285269,0.51022217,104490.0,104480.0,0.02559288]
[1734532285456,0.51022217,104490.0,104480.0,0.08617364]
[1734532285457,0.40253575,104490.0,104480.0,0.08617364]
[1734532285664,0.3211727,104490.0,104480.0,0.07717364]
[1734532285862,0.3221727,104490.0,104480.0,0.08617364]
[1734532286052,0.26832975,104490.0,104480.0,0.07666634]
[1734532286256,1.76832975,104490.0,104480.0,0.07666634]
[1734532286453,1.76832975,104490.0,104480.0,0.05461971]
[1734532287456,1.76932975,104490.0,104480.0,0.04761971]
[1734532287653,2.06932975,104490.0,104480.0,0.03861971]
[1734532287871,1.76932975,104490.0,104480.0,0.03861971]
[1734532288058,2.06932975,104490.0,104480.0,0.03861971]
[1734532288253,2.06832975,104490.0,104480.0,0.03861971]
[1734532288468,2.08268976,104490.0,104480.0,0.03861971]
[1734532289456,0.58268976,104490.0,104440.0,0.02895015]
[1734532289674,0.56396586,104450.0,104440.0,0.0005]
[1734532290562,0.56403601,104450.0,104440.0,0.0005]
[1734532290764,0.20323601,104450.0,104440.0,0.3613]
[1734532290962,7.015e-05,104450.0,104440.0,0.3613]
[1734532291169,7.015e-05,104450.0,104440.0,0.5606]
[1734532291373,0.00107015,104450.0,104440.0,0.5606]
[1734532291671,0.00207015,104450.0,104440.0,0.5606]
[1734532292062,0.56603601,104450.0,104440.0,0.0045]
[1734532292372,1.14183207,104450.0,104420.0,0.06520571]
[1734532292570,0.20316586,104430.0,104420.0,0.046]
[1734532292981,1.8608,104440.0,104420.0,0.046]
[1734532293274,0.20326569,104430.0,104420.0,0.046]
[1734532293567,9.983e-05,104430.0,104420.0,0.046]
[1734532294778,0.5794657,104430.0,104400.0,0.4608]
[1734532295274,0.20316586,104410.0,104400.0,0.1]
[1734532295466,0.56506569,104430.0,104400.0,0.1]
[1734532295681,0.56606569,104430.0,104420.0,0.004]
[1734532295968,2.06606569,104430.0,104420.0,0.004]
[1734532296368,0.56606569,104430.0,104420.0,0.004]
[1734532296668,0.20526569,104430.0,104420.0,0.004]
[1734532296972,0.56606569,104430.0,104420.0,0.004]
[1734532297279,0.00109983,104430.0,104420.0,0.56796586]
[1734532297571,0.00109983,104430.0,104420.0,0.56396586]
[1734532297780,0.08555111,104430.0,104420.0,0.75956586]
[1734532297965,0.08555111,104430.0,104420.0,0.56396586]
[1734532298174,0.08455111,104430.0,104420.0,0.3618]
[1734532299075,9.983e-05,104430.0,104420.0,0.3618]
[1734532301063,9.983e-05,104430.0,104420.0,0.001]
[1734532301064,0.36089983,104430.0,104420.0,0.001]
[1734532301868,0.91782569,104430.0,104420.0,0.001]
[1734532302069,0.71465983,104430.0,104420.0,0.001]
[1734532302269,1.01465983,104430.0,104420.0,0.001]
[1734532302472,1.09911111,104430.0,104420.0,0.001]
[1734532302667,1.50207697,104430.0,104400.0,0.4608]
[1734532302866,0.3608,104420.0,104400.0,0.1]
[1734532303772,0.3608,104420.0,104400.0,0.66396586]
[1734532303977,0.56396586,104420.0,104400.0,0.1]
[1734532304173,0.20316586,104410.0,104400.0,0.103]
[1734532304873,0.56596586,104420.0,104400.0,0.103]
[1734532305274,0.001,104410.0,104400.0,0.103]
[1734532305780,0.20416586,104410.0,104400.0,0.103]
[1734532306477,0.56596586,104410.0,104400.0,0.103]
[1734532307778,0.56605161,104410.0,104400.0,0.103]
[1734532308377,2.06605161,104410.0,104400.0,0.103]
[1734532308873,2.06605161,104410.0,104380.0,0.5763693]
[1734532308874,2.06605161,104410.0,104380.0,0.3708]
[1734532309081,0.56396586,104390.0,104380.0,0.01]
[1734532309580,0.3608,104390.0,104380.0,0.01]
[1734532309981,0.49300488,104390.0,104380.0,0.01]
[1734532310693,0.84688488,104390.0,104380.0,0.01]
[1734532311282,0.85088488,104390.0,104380.0,0.01]
[1734532311479,0.85288488,104390.0,104380.0,0.01]
[1734532312279,0.006,104390.0,104380.0,0.3708]
[1734532312476,0.006,104390.0,104380.0,0.7611]
[1734532312781,0.1965686,104410.0,104380.0,0.7611]
[1734532312981,0.1965686,104410.0,104400.0,0.7216]
[1734532313280,0.08453703,104410.0,104400.0,0.7216]
[1734532313480,0.21674191,104410.0,104400.0,0.7216]
[1734532314273,0.00408575,104410.0,104400.0,0.7216]
[1734532314473,0.01108575,104410.0,104400.0,0.7216]
[1734532316482,0.09553703,104410.0,104400.0,0.7216]
[1734532317186,0.22774191,104410.0,104400.0,0.7216]
[1734532318197,0.09553703,104410.0,104400.0,0.7216]
[1734532318379,0.22774191,104410.0,104400.0,0.7216]
[1734532318990,0.09553703,104410.0,104400.0,0.7216]
[1734532319581,0.2075686,104410.0,104400.0,0.7216]
[1734532320478,0.09553703,104410.0,104400.0,0.7216]
[1734532322579,0.2075686,104410.0,104400.0,0.7216]
[1734532323579,0.12311732,104410.0,104400.0,0.7216]
[1734532323773,0.12311732,104410.0,104400.0,1.0216]
[1734532323975,0.16976608,104430.0,104420.0,0.21880469]
[1734532324183,0.01143733,104440.0,104420.0,0.21880469]
[1734532324184,0.19667032,104450.0,104420.0,0.35100957]
[1734532324484,0.19667032,104450.0,104440.0,0.85380488]
[1734532324875,0.19667032,104470.0,104440.0,1.15380488]
[1734532325082,0.00012095,104450.0,104440.0,0.3]
[1734532325279,0.00012095,104450.0,104440.0,1.15380488]
[1734532325991,0.19667032,104470.0,104440.0,1.15380488]
[1734532326183,0.08502132,104480.0,104460.0,0.85380488]
[1734532326384,0.08502132,104480.0,104470.0,0.3608]
[1734532326987,0.21730276,104480.0,104470.0,0.3608]
[1734532327591,0.08609788,104480.0,104470.0,0.3608]
[1734532327787,0.00107656,104480.0,104470.0,0.3608]
[1734532328084,0.00307656,104480.0,104470.0,0.3608]
[1734532328590,0.13528144,104480.0,104470.0,0.3608]
[1734532328793,0.13528144,104480.0,104460.0,0.3608]
[1734532328996,0.22030276,104480.0,104460.0,0.3608]
[1734532329192,0.21930276,104480.0,104460.0,0.3608]
[1734532329495,0.22030276,104480.0,104460.0,0.3608]
[1734532329993,0.08709788,104480.0,104470.0,0.3608]
[1734532330194,0.08809788,104480.0,104460.0,0.3608]
[1734532330492,0.08809788,104480.0,104470.0,0.3608]
[1734532331387,0.08809788,104480.0,104470.0,0.68760488]
[1734532331582,0.08809788,104480.0,104470.0,0.7504]
[1734532331787,0.08909788,104480.0,104470.0,0.7504]
[1734532332197,0.00407656,104480.0,104470.0,0.7504]
[1734532332901,0.00143644,104490.0,104470.0,1.36590488]
[1734532333202,0.00143644,104490.0,104480.0,0.3608]
[1734532333892,0.79444132,104490.0,104460.0,0.3608]
[1734532334095,0.13220488,104470.0,104450.0,0.3608]
[1734532334298,0.13220488,104470.0,104450.0,0.53038355]
[1734532335197,0.3608,104460.0,104450.0,0.16958355]
[1734532335599,0.49300488,104460.0,104450.0,0.16958355]
[1734532335897,0.49300488,104460.0,104450.0,0.001]
[1734532337000,0.49300488,104460.0,104450.0,0.003]
[1734532337598,0.49400488,104460.0,104450.0,0.001]
[1734532338193,0.49500488,104460.0,104440.0,0.00011171]
[1734532338495,0.13220488,104450.0,104440.0,0.00011171]
[1734532338889,0.93960977,104450.0,104420.0,0.3608]
[1734532339091,0.93960977,104450.0,104410.0,0.56569048]
[1734532339092,0.85380488,104430.0,104410.0,0.00048]
[1734532339396,0.85380488,104430.0,104380.0,0.29559627]
[1734532339397,0.62520976,104420.0,104380.0,0.29559627]
[1734532339595,0.7216,104390.0,104370.0,0.34084715]
[1734532339901,8.394e-05,104380.0,104370.0,0.34084715]
[1734532340199,8.394e-05,104380.0,104370.0,1.00164715]
[1734532340407,0.3608,104410.0,104370.0,0.79300488]
[1734532340588,0.3608,104410.0,104390.0,0.3608]
[1734532341097,0.44725891,104420.0,104390.0,0.5494]
[1734532341492,7.89e-05,104410.0,104390.0,0.5494]
[1734532342099,7.89e-05,104410.0,104390.0,0.68160488]
[1734532342395,0.08502132,104400.0,104390.0,0.98160488]
[1734532342700,7.89e-05,104410.0,104390.0,0.98160488]
[1734532343001,0.3608,104440.0,104400.0,0.49300488]
[1734532343204,0.3608,104440.0,104420.0,0.3608]
[1734532343405,0.57883982,104450.0,104420.0,0.49300488]
[1734532343596,0.3608,104450.0,104430.0,0.13220488]
[1734532343897,0.55890813,104460.0,104430.0,0.13220488]
[1734532343898,0.55890813,104460.0,104430.0,0.3608]
[1734532344098,9.538e-05,104450.0,104430.0,0.66087489]
[1734532344295,9.538e-05,104450.0,104440.0,0.3608]
[1734532344699,9.538e-05,104450.0,104430.0,0.36087489]
[1734532344700,0.004,104440.0,104430.0,0.36087489]
[1734532345402,9.538e-05,104450.0,104430.0,0.36287489]
[1734532345592,9.538e-05,104450.0,104440.0,0.001]
[1734532346203,9.538e-05,104450.0,104430.0,0.36287489]
[1734532346396,9.538e-05,104450.0,104440.0,0.1921]
[1734532347705,9.538e-05,104450.0,104440.0,0.1931]
[1734532348005,9.538e-05,104450.0,104440.0,0.1941]
[1734532349395,0.49310026,104450.0,104440.0,0.1941]
[1734532349591,0.49310026,104450.0,104440.0,0.002]
[1734532350398,0.68980026,104450.0,104440.0,0.002]
[1734532350599,0.88840026,104450.0,104440.0,0.002]
[1734532350902,0.88840026,104450.0,104430.0,7.489e-05]
[1734532350903,1.05350026,104450.0,104430.0,7.489e-05]
[1734532351200,0.62520976,104440.0,104400.0,0.55673662]
[1734532351518,0.13220488,104420.0,104400.0,0.55673662]
[1734532351694,0.49300488,104420.0,104400.0,0.00143662]
[1734532352203,0.3608,104410.0,104400.0,0.00143662]
[1734532353699,0.3608,104410.0,104400.0,0.02066181]
[1734532353907,0.3608,104410.0,104400.0,0.03466181]
[1734532354107,0.49300488,104410.0,104400.0,0.03466181]
[1734532354298,0.3608,104410.0,104400.0,0.03466181]
[1734532354599,0.3628,104410.0,104400.0,0.03466181]
[1734532355199,0.49400488,104410.0,104380.0,0.36088401]
[1734532355399,0.49300488,104390.0,104360.0,0.00143705]
[1734532355602,0.49300488,104370.0,104360.0,0.00143705]
[1734532355994,0.49300488,104370.0,104350.0,0.34207002]
[1734532356198,0.49300488,104370.0,104340.0,0.3609213]
[1734532356497,0.13220488,104350.0,104340.0,0.0001213]
[1734532356699,0.49300488,104350.0,104340.0,0.0001213]
[1734532357000,0.3608,104350.0,104340.0,0.0001213]
[1734532357396,0.49300488,104350.0,104340.0,0.0001213]
[1734532357802,0.49500488,104350.0,104340.0,0.0091213]
[1734532358205,0.3628,104350.0,104340.0,0.0091213]
[1734532358406,0.49500488,104350.0,104340.0,0.0091213]
[1734532359611,0.3628,104350.0,104340.0,0.0091213]
[1734532359905,0.49500488,104350.0,104340.0,0.0091213]
[1734532360215,0.49500488,104350.0,104320.0,0.01]
[1734532360514,0.3608,104340.0,104320.0,0.3708]
[1734532360805,0.3628,104350.0,104320.0,0.3708]
[1734532360806,0.002,104350.0,104320.0,0.80300488]
[1734532361014,0.3628,104350.0,104320.0,0.80309619]
[1734532361201,0.3628,104350.0,104340.0,0.3608]
[1734532361202,0.002,104350.0,104340.0,0.3608]
[1734532361399,0.13420488,104350.0,104330.0,0.3608]
[1734532361611,0.49500488,104350.0,104320.0,0.01909131]
[1734532361817,0.49500488,104350.0,104320.0,0.31909131]
[1734532362115,0.3608,104340.0,104320.0,0.01909131]
[1734532362502,0.3608,104330.0,104320.0,0.01909131]
[1734532362909,0.49400488,104350.0,104320.0,0.01909131]
[1734532363104,0.3628,104350.0,104320.0,0.03811716]
[1734532363305,0.49500488,104350.0,104320.0,0.39891716]
[1734532363508,0.3608,104340.0,104320.0,0.02911716]
[1734532363814,0.001,104330.0,104320.0,0.02911716]
[1734532364708,0.49300488,104330.0,104320.0,0.01009131]
[1734532365306,1.11140976,104330.0,104300.0,0.1]
[1734532365502,0.7216,104310.0,104300.0,0.1]